bitfinex-derivatives/quotes_ETHF0:USTF0_20250428
["timestamp","ask_amount","ask_price","bid_price","bid_amount"]
[1745837619532,4.35406,1814.8,1814.7,3.802]
[1745837620634,4.35406,1814.8,1814.7,4.90372]
[1745837620833,5.71062,1814.9,1814.7,3.802]
[1745837621034,1.10166,1814.8,1814.7,3.802]
[1745837621226,5.71065,1814.9,1814.7,4.90372]
[1745837621429,4.609,1814.9,1814.7,3.802]
[1745837621630,1.10166,1814.8,1814.7,3.802]
[1745837621826,1.10166,1814.8,1814.7,4.90369]
[1745837622532,5.96158,1815.1,1814.8,1.10162]
[1745837622731,7.36257,1815.2,1815.0,3.2078]
[1745837622924,1.10148,1815.1,1815.0,4.30934]
[1745837623130,1.10148,1815.1,1815.0,7.0098]
[1745837624431,1.10148,1815.1,1815.0,11.39194]
[1745837624634,1.10148,1815.1,1815.0,10.2904]
[1745837624832,1.10148,1815.1,1815.0,11.39194]
[1745837625335,1.10146,1815.2,1815.1,1.10143]
[1745837625533,1.10141,1815.3,1815.2,1.10137]
[1745837626142,1.10141,1815.3,1815.2,4.90337]
[1745837626346,1.10141,1815.3,1815.2,4.90342]
[1745837626830,1.1013,1815.4,1815.2,4.90342]
[1745837627030,1.10136,1815.3,1815.2,3.802]
[1745837627239,1.10144,1815.2,1815.0,6.4884]
[1745837627438,1.10144,1815.2,1815.0,7.58993]
[1745837627640,4.35936,1815.3,1815.1,1.10146]
[1745837627840,4.35936,1815.3,1815.0,7.58989]
[1745837628247,3.258,1815.2,1815.1,1.10148]
[1745837628541,4.35945,1815.2,1815.0,6.4884]
[1745837628739,3.258,1815.2,1815.0,6.4884]
[1745837629143,3.258,1815.2,1815.1,1.10148]
[1745837631737,8.0802,1815.5,1815.4,1.10129]
[1745837631938,11.3746,1815.5,1815.4,1.10129]
[1745837632146,11.3746,1815.5,1815.4,4.90329]
[1745837632846,11.3746,1815.5,1815.4,8.19059]
[1745837633644,12.47583,1815.5,1815.4,7.0893]
[1745837633844,11.3746,1815.5,1815.4,8.19059]
[1745837634238,4.30902,1815.6,1815.4,8.19059]
[1745837634438,3.2944,1815.5,1815.4,8.19059]
[1745837636647,4.39563,1815.5,1815.4,4.90329]
[1745837637851,3.2078,1815.6,1815.5,1.10123]
[1745837638146,6.95657,1815.6,1815.5,1.10123]
[1745837638347,5.8554,1815.6,1815.5,1.10123]
[1745837638547,61.837,1816.3,1815.5,2.8787]
[1745837638744,61.837,1816.3,1815.8,3.2078]
[1745837638745,1.10094,1816.0,1815.8,3.2078]
[1745837639150,1.10094,1816.0,1815.9,1.10099]
[1745837640147,2.6791,1816.1,1816.0,1.10093]
[1745837640345,2.6791,1816.1,1815.9,2.8787]
[1745837640547,3.78,1816.1,1816.0,1.10093]
[1745837640754,2.6791,1816.1,1815.8,7.70883]
[1745837640953,1.10098,1816.0,1815.8,7.70883]
[1745837641148,1.10099,1815.9,1815.8,11.51083]
[1745837641449,5.69899,1815.9,1815.8,0.5942]
[1745837642148,5.69899,1815.9,1815.5,3.2078]
[1745837642352,1.1011,1815.8,1815.6,2.6369]
[1745837642846,4.598,1815.9,1815.6,2.6369]
[1745837642847,1.10111,1815.7,1815.6,2.6369]
[1745837643245,1.10107,1815.8,1815.6,2.6369]
[1745837643655,1.10111,1815.7,1815.6,2.6369]
[1745837643951,1.10109,1815.8,1815.6,2.6369]
[1745837644155,4.598,1815.9,1815.7,1.10109]
[1745837644357,4.598,1815.9,1815.8,2.635]
[1745837644853,5.69899,1815.9,1815.8,2.635]
[1745837645156,5.69899,1815.9,1815.8,6.437]
[1745837649151,1.10099,1815.9,1815.8,7.53805]
[1745837649458,1.10093,1816.0,1815.9,1.10099]
[1745837649658,1.10093,1816.0,1815.9,2.8971]
[1745837650162,1.10093,1816.0,1815.9,6.6991]
[1745837650564,1.10093,1816.0,1815.9,7.80009]
[1745837650757,1.10093,1816.0,1815.9,11.00789]
[1745837651461,1.10091,1816.1,1816.0,1.10092]
[1745837651655,4.597,1816.4,1816.0,2.8272]
[1745837651856,5.69769,1816.4,1816.3,3.2078]
[1745837652156,1.10069,1816.4,1816.3,7.0098]
[1745837652864,1.10069,1816.4,1816.3,9.837]
[1745837654062,1.10069,1816.4,1816.3,7.0098]
[1745837655356,1.10069,1816.4,1816.3,3.802]
[1745837655751,3.73809,1816.4,1816.3,3.802]
[1745837656162,3.73809,1816.4,1816.1,3.2078]
[1745837656163,1.10081,1816.2,1816.1,3.2078]
[1745837656664,1.10093,1816.0,1815.9,2.8093]
[1745837657255,1.10093,1816.0,1815.9,6.6113]
[1745837659558,2.731,1816.1,1815.9,6.6113]
[1745837659765,1.10093,1816.0,1815.9,6.6113]
[1745837661669,1.10093,1816.0,1815.9,3.802]
[1745837662058,3.79183,1816.0,1815.9,3.802]
[1745837662367,1.10099,1815.9,1815.8,8.14]
[1745837663161,1.10099,1815.9,1815.8,11.942]
[1745837665971,1.10099,1815.9,1815.8,13.04305]
[1745837666369,1.10097,1816.0,1815.9,1.10094]
[1745837666575,1.10097,1816.0,1815.9,7.17974]
[1745837667282,1.10097,1816.0,1815.9,10.98174]
[1745837667484,1.10097,1816.0,1815.9,10.98179]
[1745837667885,1.10097,1816.0,1815.9,9.8808]
[1745837669188,1.10097,1816.0,1815.9,10.98179]
[1745837669386,1.10097,1816.0,1815.9,9.8808]
[1745837669881,3.93499,1816.1,1815.9,9.8808]
[1745837670083,3.93501,1816.1,1815.9,9.8808]
[1745837670487,3.93501,1816.1,1815.9,10.98178]
[1745837670689,3.93501,1816.1,1815.9,9.8808]
[1745837670984,3.93501,1816.1,1816.0,2.4894]
[1745837671181,2.8341,1816.1,1816.0,2.4894]
[1745837671383,7.4889,1816.3,1816.0,3.59031]
[1745837671589,1.10082,1816.2,1816.0,3.59031]
[1745837671887,1.10081,1816.2,1816.1,2.5464]
[1745837672281,11.1909,1816.3,1816.1,3.64727]
[1745837672485,11.1909,1816.3,1816.1,6.85507]
[1745837672686,11.1909,1816.3,1816.2,2.5464]
[1745837673086,11.1909,1816.3,1816.1,3.2078]
[1745837673087,1.10081,1816.2,1816.1,3.2078]
[1745837673384,3.70201,1816.2,1816.0,3.64732]
[1745837673589,1.10093,1816.0,1815.9,3.2078]
[1745837673791,3.70212,1816.1,1815.9,4.30879]
[1745837673984,2.6012,1816.0,1815.9,4.30879]
[1745837674292,3.70213,1816.0,1815.9,3.802]
[1745837674893,3.70213,1816.0,1815.9,4.90299]
[1745837675697,3.70213,1816.0,1815.9,3.802]
[1745837675888,3.70213,1816.0,1815.9,4.90299]
[1745837676195,3.70213,1816.0,1815.9,3.802]
[1745837676587,3.70213,1816.0,1815.9,4.90299]
[1745837677094,3.70213,1816.0,1815.9,1.10099]
[1745837677290,1.10099,1815.9,1815.8,8.0085]
[1745837677491,1.10105,1815.8,1815.7,3.2078]
[1745837677693,2.75279,1815.7,1815.1,3.2078]
[1745837677996,7.30329,1815.7,1815.1,10.7708]
[1745837678192,1.10125,1815.5,1815.3,1.10134]
[1745837678397,4.5505,1815.7,1815.2,2.5399]
[1745837678398,1.1013,1815.4,1815.2,2.5399]
[1745837678585,3.5461,1815.4,1815.2,3.6413]
[1745837678894,3.54614,1815.4,1815.2,2.5399]
[1745837679092,1.10141,1815.3,1815.1,8.2309]
[1745837679294,1.10141,1815.3,1815.2,3.802]
[1745837679491,1.10141,1815.3,1815.2,6.3419]
[1745837679700,1.10141,1815.3,1815.2,3.802]
[1745837679996,3.56021,1815.3,1815.2,3.802]
[1745837680191,2.4588,1815.3,1815.1,3.2078]
[1745837680395,1.10142,1815.2,1815.1,3.2078]
[1745837681700,3.68792,1815.2,1815.1,3.2078]
[1745837684605,1.10142,1815.2,1815.1,3.2078]
[1745837691206,1.10154,1815.0,1814.9,3.802]
[1745837691807,3.61864,1815.0,1814.9,3.802]
[1745837692000,1.10154,1815.0,1814.9,3.802]
[1745837693008,1.10154,1815.0,1814.9,9.6255]
[1745837696806,1.10154,1815.0,1814.9,6.4177]
[1745837701715,1.10154,1815.0,1814.9,7.5193]
[1745837701915,1.10154,1815.0,1814.9,9.6255]
[1745837702117,1.10154,1815.0,1814.9,10.7271]
[1745837702614,1.10154,1815.0,1814.9,9.6255]
[1745837702913,1.10154,1815.0,1814.9,10.7271]
[1745837703419,1.10154,1815.0,1814.9,9.6255]
[1745837703609,1.10154,1815.0,1814.9,10.7271]
[1745837705818,1.10152,1815.1,1815.0,1.10148]
[1745837706115,1.10152,1815.1,1815.0,11.4852]
[1745837706319,1.10152,1815.1,1815.0,12.58674]
[1745837709916,1.10146,1815.2,1815.1,1.10145]
[1745837710115,1.10146,1815.2,1815.1,6.77805]
[1745837710318,3.2078,1815.5,1815.1,5.6766]
[1745837710619,1.10133,1815.4,1815.3,1.10128]
[1745837710820,1.10133,1815.4,1815.3,2.4688]
[1745837711020,1.10133,1815.4,1815.3,1.10136]
[1745837711227,1.10133,1815.4,1815.3,4.90336]
[1745837711620,1.10133,1815.4,1815.3,3.802]
[1745837712131,1.10139,1815.3,1815.1,4.30924]
[1745837712318,1.10142,1815.2,1815.1,2.4064]
[1745837712518,2.3671,1815.2,1815.1,3.50788]
[1745837712724,3.46852,1815.2,1815.1,2.4064]
[1745837712931,2.3671,1815.2,1815.1,2.4064]
[1745837713931,3.46852,1815.2,1815.1,3.50788]
[1745837716929,3.46852,1815.2,1815.1,2.4064]
[1745837718632,1.10148,1815.1,1815.0,8.943]
[1745837718829,5.89588,1815.1,1815.0,3.802]
[1745837720632,5.89588,1815.1,1815.0,6.2468]
[1745837721241,1.10148,1815.1,1815.0,6.2468]
[1745837721429,5.34516,1815.3,1815.0,7.34831]
[1745837721629,1.10142,1815.2,1815.1,8.2441]
[1745837721930,1.10142,1815.2,1815.1,5.7993]
[1745837726040,1.10142,1815.2,1815.1,6.90078]
[1745837728637,1.10142,1815.2,1815.1,5.7993]
[1745837730937,3.6903,1815.3,1815.1,5.7993]
[1745837731538,1.10142,1815.2,1815.1,5.7993]
[1745837732840,1.10142,1815.2,1815.1,9.26998]
[1745837733440,3.69031,1815.3,1815.1,9.26998]
[1745837733739,3.69031,1815.3,1815.2,2.3692]
[1745837733939,1.10135,1815.4,1815.2,4.6319]
[1745837734139,1.10135,1815.4,1815.3,1.10136]
[1745837734440,1.10135,1815.4,1815.3,3.47056]
[1745837734835,4.6296,1815.5,1815.3,3.47056]
[1745837734836,5.73087,1815.5,1815.3,3.47056]
[1745837735242,5.73087,1815.5,1815.3,7.27256]
[1745837735740,2.3072,1815.4,1815.3,7.27256]
[1745837736443,2.3994,1815.5,1815.3,6.1712]
[1745837736742,5.80785,1815.5,1815.3,7.27251]
[1745837736942,5.80785,1815.5,1815.4,1.10129]
[1745837737140,5.80785,1815.5,1815.4,4.90329]
[1745837737340,4.7066,1815.5,1815.4,4.90329]
[1745837737740,3.2078,1815.8,1815.4,3.802]
[1745837737942,4.30887,1815.8,1815.5,7.31589]
[1745837738133,2.3072,1815.7,1815.6,3.32043]
[1745837738642,2.3072,1815.7,1815.6,1.10113]
[1745837739242,2.3072,1815.7,1815.5,8.4994]
[1745837739438,1.10117,1815.6,1815.5,8.4994]
[1745837739744,3.40836,1815.7,1815.6,1.10117]
[1745837740041,4.56346,1815.7,1815.6,1.10117]
[1745837740246,1.10123,1815.6,1815.5,1.10123]
[1745837740446,3.33153,1815.6,1815.5,1.10123]
[1745837740838,3.33153,1815.6,1815.3,5.82084]
[1745837741038,2.2303,1815.5,1815.3,5.82084]
[1745837741343,2.2303,1815.5,1815.4,2.3539]
[1745837741743,1.10123,1815.6,1815.4,2.3539]
[1745837742141,1.10123,1815.6,1815.4,6.1559]
[1745837742647,1.10123,1815.5,1815.4,6.1559]
[1745837747550,1.10123,1815.5,1815.4,3.802]
[1745837747747,3.43133,1815.5,1815.4,3.802]
[1745837748136,3.43133,1815.5,1815.1,5.5582]
[1745837748342,1.10142,1815.2,1815.1,7.7152]
[1745837749244,4.90342,1815.2,1815.1,7.7152]
[1745837751851,4.90342,1815.2,1815.1,8.81668]
[1745837754954,3.802,1815.2,1815.1,8.81668]
[1745837762366,2.3301,1815.5,1815.4,1.10129]
[1745837762566,5.45526,1815.5,1815.4,1.10129]
[1745837762766,1.10129,1815.4,1815.3,6.43422]
[1745837762966,3.15729,1815.4,1815.3,6.43422]
[1745837763266,6.95929,1815.4,1815.3,6.43422]
[1745837763569,6.95929,1815.4,1815.3,3.22642]
[1745837763968,5.858,1815.4,1815.3,4.30912]
[1745837766173,5.858,1815.4,1815.3,6.41192]
[1745837767369,3.802,1815.4,1815.3,6.41192]
[1745837771167,4.90329,1815.4,1815.3,6.41192]
[1745837771874,4.90329,1815.4,1815.3,3.2078]
[1745837772278,6.92219,1815.4,1815.3,3.2078]
[1745837773269,5.8209,1815.4,1815.3,3.2078]
[1745837773474,5.8209,1815.4,1815.3,4.30916]
[1745837773974,6.92219,1815.4,1815.3,3.2078]
[1745837774677,5.8209,1815.4,1815.3,4.30916]
[1745837775075,2.0189,1815.4,1815.3,8.11116]
[1745837776375,6.6219,1815.7,1815.3,7.0098]
[1745837776576,8.8125,1815.7,1815.6,1.10117]
[1745837776875,7.72301,1815.7,1815.6,1.10117]
[1745837777581,6.6219,1815.7,1815.6,1.10117]
[1745837778077,7.72301,1815.7,1815.6,1.10117]
[1745837779576,2.0769,1815.7,1815.6,1.10117]
[1745837779874,2.0769,1815.7,1815.6,3.28257]
[1745837780574,3.2078,1815.8,1815.7,1.10111]
[1745837780880,1.10114,1815.7,1815.5,8.111]
[1745837781174,1.10116,1815.7,1815.5,12.39573]
[1745837781374,2.1427,1815.6,1815.5,12.39573]
[1745837781579,2.1427,1815.6,1815.5,10.21433]
[1745837782081,3.24387,1815.6,1815.5,12.43353]
[1745837783083,3.24387,1815.6,1815.5,11.3323]
[1745837783286,3.24387,1815.6,1815.5,9.1131]
[1745837784285,3.24387,1815.6,1815.5,11.3323]
[1745837784481,3.24387,1815.6,1815.5,12.43353]
[1745837784887,2.1427,1815.6,1815.5,12.43353]
[1745837785084,3.24387,1815.6,1815.5,12.43353]
[1745837785284,1.10113,1815.7,1815.6,1.10111]
[1745837785485,3.20881,1815.8,1815.7,1.10111]
[1745837785688,3.20881,1815.8,1815.7,4.30891]
[1745837785884,1.10111,1815.8,1815.7,4.30891]
[1745837786086,1.10111,1815.8,1815.7,8.11091]
[1745837786992,1.10111,1815.8,1815.7,7.0098]
[1745837787391,1.10104,1815.9,1815.8,1.10102]
[1745837787578,1.10104,1815.9,1815.8,3.14322]
[1745837787778,1.10104,1815.9,1815.8,7.26082]
[1745837787989,1.10097,1816.0,1815.9,1.10096]
[1745837788193,3.6524697,1816.1,1816.0,1.10093]
[1745837788583,3.20862,1816.1,1816.0,1.10093]
[1745837789090,3.2078,1816.2,1816.1,1.10087]
[1745837789292,4.30861,1816.2,1816.1,1.10087]
[1745837789790,4.30861,1816.2,1816.1,5.16867]
[1745837789990,4.30861,1816.2,1816.1,4.0678]
[1745837790697,1.10087,1816.1,1816.0,3.802]
[1745837790995,3.17497,1816.1,1816.0,3.802]
[1745837791184,1.10093,1816.0,1815.9,4.2368]
[1745837792095,1.10093,1816.0,1815.9,9.13979]
[1745837792292,2.0887,1816.0,1815.9,9.13979]
[1745837792497,3.18963,1816.0,1815.9,3.802]
[1745837793601,1.10091,1816.1,1815.9,3.802]
[1745837793798,1.10091,1816.1,1815.9,5.9114]
[1745837793999,3.18791,1816.1,1816.0,4.2644]
[1745837794302,3.18791,1816.1,1816.0,8.0664]
[1745837794690,3.18791,1816.1,1816.0,9.16733]
[1745837794886,3.18791,1816.1,1816.0,8.0664]
[1745837795996,3.18791,1816.1,1816.0,3.802]
[1745837798002,3.63681,1816.1,1816.0,3.802]
[1745837798205,2.75238,1816.0,1815.6,2.0509]
[1745837798501,1.1011,1815.8,1815.7,1.1011]
[1745837799205,1.1011,1815.8,1815.7,3.802]
[1745837799407,1.10105,1815.8,1815.7,3.802]
[1745837799608,1.10105,1815.8,1815.7,4.90308]
[1745837799906,1.10104,1815.9,1815.8,1.10104]
[1745837800100,1.10104,1815.9,1815.8,9.06494]
[1745837802008,1.10104,1815.9,1815.8,7.9639]
[1745837802206,1.10104,1815.9,1815.8,9.06495]
[1745837802611,1.10104,1815.9,1815.8,7.9639]
[1745837803007,1.10104,1815.9,1815.8,9.06495]
[1745837805707,1.10104,1815.9,1815.8,7.9639]
[1745837806001,1.10104,1815.9,1815.8,3.802]
[1745837806201,1.10117,1815.6,1815.5,7.1477]
[1745837807005,3.20467,1815.6,1815.5,3.2078]
[1745837807404,8.20467,1815.6,1815.5,3.2078]
[1745837807601,2.75336,1815.4,1815.1,3.9399]
[1745837807806,1.10142,1815.2,1815.1,3.9399]
[1745837808913,1.10142,1815.2,1815.1,5.04138]
[1745837809209,1.10142,1815.2,1815.1,3.9399]
[1745837809808,3.05111,1815.3,1815.1,5.04138]
[1745837810105,1.9497,1815.3,1815.2,1.10142]
[1745837811213,1.9497,1815.3,1815.2,4.90342]
[1745837812413,1.9497,1815.3,1815.2,7.03462]
[1745837812813,1.9497,1815.3,1815.2,5.9332]
[1745837813616,3.05106,1815.3,1815.2,5.9332]
[1745837814718,1.10133,1815.4,1815.2,7.03462]
[1745837814908,3.22803,1815.4,1815.3,2.0135]
[1745837815102,3.22803,1815.4,1815.3,5.8155]
[1745837816014,3.22803,1815.4,1815.3,3.802]
[1745837816216,1.10142,1815.2,1815.1,3.9399]
[1745837816413,1.10142,1815.2,1815.1,5.9534]
[1745837817517,1.10142,1815.2,1815.1,7.05488]
[1745837817720,1.10137,1815.3,1815.1,7.05483]
[1745837817912,1.10137,1815.3,1815.2,2.0333]
[1745837818113,1.10137,1815.3,1815.2,5.8353]
[1745837821617,3.25967,1815.3,1815.2,3.802]
[1745837822117,1.1016,1814.9,1814.8,3.2078]
[1745837822322,1.1016,1814.9,1814.8,4.2012]
[1745837822920,1.10172,1814.7,1814.6,5.2247]
[1745837823129,1.10172,1814.7,1814.6,9.4259]
[1745837823528,4.53,1815.1,1814.8,1.10163]
[1745837823822,1.10154,1815.0,1814.9,4.0996]
[1745837824122,1.10154,1815.0,1814.9,5.8189]
[1745837824327,3.26884,1815.0,1814.9,5.8189]
[1745837825641,1.10154,1815.0,1814.9,6.9205]
[1745837825827,1.10154,1815.0,1814.9,8.8855]
[1745837826634,1.10154,1815.0,1814.9,7.7839]
[1745837827035,5.96122,1815.3,1814.9,10.9917]
[1745837827228,1.10145,1815.2,1815.1,1.10145]
[1745837827429,1.10145,1815.2,1815.1,3.12165]
[1745837827836,1.10145,1815.2,1815.1,2.0202]
[1745837830640,1.10145,1815.2,1815.1,5.228]
[1745837834142,1.10145,1815.2,1815.1,6.32948]
[1745837835041,3.06332,1815.3,1815.2,1.10142]
[1745837835238,3.06332,1815.3,1815.2,2.1723]
[1745837835444,1.10134,1815.4,1815.3,1.10136]
[1745837836044,1.10136,1815.3,1815.2,3.27367]
[1745837836945,14.4427,1815.5,1815.3,1.10132]
[1745837836946,1.10131,1815.4,1815.3,1.10132]
[1745837837142,12.79087,1815.5,1815.4,1.10129]
[1745837837543,12.79087,1815.5,1815.4,3.10459]
[1745837838243,12.79087,1815.5,1815.4,6.90659]
[1745837838848,12.79087,1815.5,1815.4,5.8053]
[1745837839243,0.43683926,1815.6,1815.4,6.90659]
[1745837839447,3.19434,1815.7,1815.4,6.90654]
[1745837839650,3.19432,1815.7,1815.4,5.8053]
[1745837839946,1.10118,1815.6,1815.4,6.90655]
[1745837840344,3.19436,1815.7,1815.5,1.10122]
[1745837840545,1.10117,1815.6,1815.4,6.90654]
[1745837840942,1.10123,1815.5,1815.4,6.90654]
[1745837841446,1.10122,1815.6,1815.5,1.10123]
[1745837842051,1.10115,1815.7,1815.6,1.10116]
[1745837842248,1.10117,1815.6,1815.5,8.11098]
[1745837842747,1.10112,1815.7,1815.6,1.10117]
[1745837843550,4.83404,1815.9,1815.5,7.0098]
[1745837843551,1.10117,1815.6,1815.5,8.11099]
[1745837844048,1.10112,1815.7,1815.5,8.11099]
[1745837844248,3.1826,1815.8,1815.6,1.10115]
[1745837844648,3.1826,1815.8,1815.7,2.1414]
[1745837846153,3.1826,1815.8,1815.7,5.9434]
[1745837846756,2.0815,1815.8,1815.7,7.04451]
[1745837847454,2.75192,1816.3,1815.7,16.90394]
[1745837847653,1.1009,1816.1,1815.8,4.91152]
[1745837847953,1.1009,1816.1,1816.0,1.10093]
[1745837848155,1.1009,1816.1,1816.0,4.90293]
[1745837848656,1.1009,1816.1,1816.0,3.802]
[1745837848958,3.07136,1816.2,1816.1,1.10087]
[1745837849447,1.9705,1816.2,1816.1,1.10087]
[1745837849754,3.07131,1816.2,1816.1,1.10087]
[1745837850142,2.157,1816.3,1816.2,1.10081]
[1745837850347,4.2915,1816.3,1816.2,1.10081]
[1745837850546,5.39225,1816.3,1816.2,1.10081]
[1745837850748,3.64176403,1816.6,1816.1,2.75218]
[1745837850957,1.10054,1816.7,1816.2,2.0458]
[1745837851152,2.0874,1816.6,1816.4,1.10069]
[1745837851455,2.0874,1816.6,1816.4,1.10065]
[1745837851649,2.0874,1816.6,1816.4,1.10064]
[1745837851850,2.0874,1816.6,1816.3,5.2014]
[1745837852047,2.0874,1816.6,1816.4,1.10069]
[1745837852355,3.18798,1816.6,1816.4,2.0624]
[1745837852950,2.0874,1816.6,1816.4,2.0624]
[1745837853157,3.18799,1816.6,1816.4,2.0624]
[1745837853856,1.10063,1816.5,1816.4,2.0624]
[1745837854053,1.10069,1816.4,1816.3,3.2078]
[1745837854259,1.10069,1816.4,1816.2,2.0458]
[1745837854260,1.10075,1816.3,1816.2,2.0458]
[1745837854757,3.11145,1816.3,1816.2,4.1117]
[1745837855052,3.11145,1816.3,1816.2,7.9137]
[1745837856756,1.10075,1816.3,1816.2,7.9137]
[1745837856950,2.75147,1816.6,1816.2,7.9137]
[1745837857156,1.10075,1816.3,1816.2,5.8478]
[1745837857455,1.10075,1816.3,1816.2,6.94861]
[1745837857659,1.10075,1816.3,1816.2,5.8478]
[1745837858960,3.17475,1816.3,1816.2,3.802]
[1745837859266,1.10087,1816.1,1816.0,3.2078]
[1745837859455,1.10093,1816.0,1815.9,7.8392]
[1745837860155,1.10093,1816.0,1815.9,5.7581]
[1745837861264,1.10093,1816.0,1815.9,1.9561]
[1745837863358,1.10093,1816.0,1815.9,5.7581]
[1745837863559,1.10092,1816.1,1815.9,5.7581]
[1745837863760,1.10092,1816.1,1816.0,1.9499]
[1745837864163,1.10092,1816.1,1816.0,5.7519]
[1745837869158,3.04472,1816.1,1816.0,3.802]
[1745837870075,1.10093,1816.0,1815.9,1.9561]
[1745837870372,3.18323,1816.0,1815.9,1.9561]
[1745837871270,3.18323,1816.0,1815.9,5.7581]
[1745837872375,3.18323,1816.0,1815.9,7.7778]
[1745837873478,1.10093,1816.0,1815.9,7.7778]
[1745837874978,1.10093,1816.0,1815.9,8.87879]
[1745837876071,1.10093,1816.0,1815.9,7.7778]
[1745837876471,1.10093,1816.0,1815.9,5.7581]
[1745837877275,1.10093,1816.0,1815.9,5.00129]
[1745837877974,1.10093,1816.0,1815.9,6.95189]
[1745837878176,1.10093,1816.0,1815.9,10.75389]
[1745837878379,1.10093,1816.0,1815.9,9.6529]
[1745837879764,3.10013,1816.0,1815.9,3.802]
[1745837880181,1.10099,1815.9,1815.8,3.2078]
[1745837880377,1.10099,1815.9,1815.8,6.29595]
[1745837880575,1.10099,1815.9,1815.8,5.1949]
[1745837880767,1.10111,1815.7,1815.6,5.1492]
[1745837880968,1.10111,1815.7,1815.6,7.1363]
[1745837881785,1.10111,1815.7,1815.6,8.23747]
[1745837882478,1.10111,1815.7,1815.6,8.23742]
[1745837882676,1.10111,1815.7,1815.6,8.23747]
[1745837882878,1.10111,1815.7,1815.6,7.1363]
[1745837883080,1.10111,1815.7,1815.6,8.23747]
[1745837883782,1.10103,1815.9,1815.8,1.10101]
[1745837884081,1.10108,1815.8,1815.7,6.25596]
[1745837884976,1.10103,1815.9,1815.8,1.10099]
[1745837885280,1.10103,1815.9,1815.8,6.91999]
[1745837885485,1.10103,1815.9,1815.8,5.819]
[1745837887588,1.10103,1815.9,1815.8,3.802]
[1745837889383,1.10105,1815.8,1815.7,5.252]
[1745837890285,1.10105,1815.8,1815.7,9.054]
[1745837890977,3.01802,1815.9,1815.7,9.054]
[1745837891173,1.917,1815.9,1815.8,1.9337]
[1745837891385,3.16761,1816.1,1815.8,1.9337]
[1745837891585,5.15381,1816.1,1815.8,1.9337]
[1745837891787,5.15381,1816.1,1815.9,1.9225]
[1745837891788,1.10093,1816.0,1815.9,1.9225]
[1745837891991,1.10099,1815.9,1815.8,1.9337]
[1745837892481,3.08718,1816.0,1815.8,1.9337]
[1745837892677,1.10099,1815.9,1815.8,1.9337]
[1745837892884,1.9862,1815.9,1815.8,1.9337]
[1745837893078,1.9862,1815.9,1815.8,6.83675]
[1745837893889,1.9862,1815.9,1815.8,5.7357]
[1745837894589,3.08719,1815.9,1815.8,5.7357]
[1745837894982,3.08719,1815.9,1815.8,3.802]
[1745837896891,1.9862,1815.9,1815.8,3.802]
[1745837897092,1.10096,1816.0,1815.8,3.802]
[1745837897390,1.10096,1816.0,1815.8,6.81382]
[1745837897591,1.10096,1816.0,1815.9,3.8031]
[1745837897993,3.11206,1816.0,1815.9,3.8031]
[1745837898193,3.11206,1816.0,1815.9,7.6051]
[1745837901598,1.10096,1816.0,1815.9,7.6051]
[1745837902592,1.9093,1816.1,1815.9,10.8129]
[1745837902800,1.10087,1816.1,1816.0,2.0457]
[1745837902992,1.10087,1816.1,1816.0,4.0338]
[1745837903187,1.10087,1816.1,1816.0,8.93673]
[1745837903595,1.10087,1816.1,1816.0,8.93668]
[1745837904600,1.10087,1816.1,1816.0,7.8358]
[1745837906688,1.10087,1816.1,1816.0,8.93673]
[1745837906998,1.10083,1816.2,1816.1,1.10083]
[1745837907396,1.10083,1816.2,1816.1,4.30863]
[1745837908099,1.10083,1816.2,1816.1,3.2078]
[1745837909403,1.10083,1816.2,1816.1,4.30867]
[1745837910099,1.10081,1816.2,1816.1,4.30864]
[1745837910296,1.1008,1816.3,1816.1,4.30864]
[1745837910498,1.1008,1816.3,1816.2,1.9104]
[1745837910895,1.1008,1816.3,1816.2,3.01121]
[1745837911197,1.10074,1816.4,1816.3,1.10075]
[1745837911399,1.10074,1816.4,1816.3,3.00475]
[1745837912101,1.10074,1816.4,1816.3,6.80675]
[1745837913703,1.10074,1816.4,1816.3,5.706]
[1745837914200,1.10074,1816.4,1816.3,3.802]
[1745837914903,1.10074,1816.4,1816.3,4.90275]
[1745837915299,3.00745,1816.5,1816.2,6.7177]
[1745837915603,1.10069,1816.4,1816.3,1.10071]
[1745837915796,1.10069,1816.4,1816.2,5.06646]
[1745837916100,1.10069,1816.4,1816.3,3.802]
[1745837916598,1.9068,1816.5,1816.3,4.90275]
[1745837916995,3.2078,1816.6,1816.5,1.10063]
[1745837917195,1.10033,1817.0,1816.7,1.1005]
[1745837917398,5.06631,1817.1,1816.8,8.21804]
[1745837917597,5.06631,1817.1,1816.9,1.10038]
[1745837917598,3.966,1817.1,1816.9,1.10038]
[1745837917898,3.12148,1817.1,1816.9,1.10038]
[1745837918199,2.0212,1817.1,1817.0,1.10033]
[1745837918396,1.10023,1817.2,1817.0,1.10033]
[1745837918706,1.10023,1817.2,1816.9,4.90234]
[1745837918900,1.10033,1817.0,1816.9,3.802]
[1745837919105,1.10039,1816.9,1816.8,3.9098]
[1745837919505,1.9074,1817.1,1816.8,3.9098]
[1745837920005,1.10039,1816.9,1816.8,3.9098]
[1745837920504,1.9074,1817.1,1816.8,3.9098]
[1745837920693,1.9074,1817.1,1816.8,5.01023]